bitfinex/quotes_BTCUSD_20250716
["timestamp","ask_amount","ask_price","bid_price","bid_amount"]
[1752681552460,0.1930494,119140.0,119130.0,0.18467199]
[1752681552683,0.1930494,119140.0,119130.0,0.54985355]
[1752681552684,0.01678591,119140.0,119130.0,0.54985355]
[1752681552906,0.03357238,119140.0,119130.0,0.54985355]
[1752681553128,0.04196579,119140.0,119130.0,0.54985355]
[1752681553348,0.00839257,119150.0,119140.0,0.18465648]
[1752681553562,0.02517721,119150.0,119140.0,0.34420211]
[1752681553832,0.02517678,119150.0,119140.0,0.34420211]
[1752681554052,0.19301727,119160.0,119150.0,0.19303328]
[1752681554275,0.01678323,119160.0,119150.0,0.19303313]
[1752681554507,0.003,119170.0,119160.0,0.20140871]
[1752681554753,0.02817313,119170.0,119160.0,0.34400871]
[1752681555026,0.20439197,119170.0,119160.0,0.33561713]
[1752681555281,0.02817313,119170.0,119160.0,0.34400871]
[1752681555537,0.003,119170.0,119160.0,0.71261647]
[1752681555780,0.01978154,119170.0,119160.0,0.71261647]
[1752681556018,0.01139073,119170.0,119160.0,0.71261647]
[1752681556262,0.19064986,119170.0,119160.0,0.4824]
[1752681556495,0.16785564,119150.0,119130.0,0.39742524]
[1752681556740,0.17089564,119150.0,119140.0,0.48244]
[1752681556985,0.17626307,119140.0,119130.0,0.00015093]
[1752681557222,0.18465634,119140.0,119130.0,0.51642894]
[1752681557474,0.18465634,119140.0,119130.0,0.53321696]
[1752681557943,0.18465634,119140.0,119130.0,0.54161108]
[1752681558157,0.01678633,119140.0,119130.0,0.55000448]
[1752681558380,0.19304947,119140.0,119130.0,0.54161079]
[1752681558617,0.02517974,119140.0,119130.0,0.55000462]
[1752681558845,0.19304947,119140.0,119130.0,0.34015093]
[1752681559064,0.18465641,119140.0,119130.0,0.51642887]
[1752681559288,0.18465641,119140.0,119130.0,0.34015093]
[1752681559506,0.17930314,119140.0,119130.0,0.14259093]
[1752681560635,0.16986973,119140.0,119130.0,0.00015093]
[1752681560847,0.002,119140.0,119130.0,0.31043475]
[1752681561057,0.01878619,119140.0,119130.0,0.65882894]
[1752681561285,0.01878591,119140.0,119130.0,0.68401065]
[1752681561546,0.03557259,119140.0,119130.0,0.68401072]
[1752681561748,0.04396607,119140.0,119130.0,0.68401079]
[1752681561951,0.03357259,119140.0,119130.0,0.68401079]
[1752681562165,0.20144295,119140.0,119130.0,0.67561696]
[1752681562375,0.18665662,119140.0,119130.0,0.48255093]
[1752681562589,0.17626321,119140.0,119130.0,0.6589088]
[1752681562834,0.01678591,119140.0,119130.0,0.68409022]
[1752681563047,0.00839285,119140.0,119130.0,0.75144163]
[1752681563253,0.03357231,119140.0,119130.0,0.61196163]
[1752681563465,0.17569711,119160.0,119130.0,0.72070616]
[1752681563671,0.20140899,119160.0,119150.0,0.17624828]
[1752681563883,0.00839158,119160.0,119150.0,0.3352732]
[1752681564128,0.01678323,119160.0,119150.0,0.34366563]
[1752681564331,0.02761213,119170.0,119160.0,0.18462506]
[1752681564544,0.17319633,119170.0,119160.0,0.18462548]
[1752681564749,0.1762187,119170.0,119160.0,0.17623362]
[1752681565172,0.01678211,119170.0,119160.0,0.19301713]
[1752681565418,0.17624828,119150.0,119140.0,0.51926277]
[1752681565645,0.20981855,119150.0,119140.0,0.65290936]
[1752681565857,0.19303377,119150.0,119140.0,0.66969597]
[1752681566276,0.19303377,119150.0,119140.0,0.6780891]
[1752681566486,0.01678535,119150.0,119140.0,0.66969597]
[1752681566723,0.01678535,119150.0,119140.0,0.67808896]
[1752681566931,0.01878535,119150.0,119140.0,0.67808896]
[1752681567352,0.002,119150.0,119140.0,0.68108896]
[1752681567560,0.002,119150.0,119140.0,1.16524508]
[1752681567769,0.002,119150.0,119140.0,0.68108896]
[1752681567996,0.002,119150.0,119140.0,1.22924508]
[1752681568632,0.02517706,119150.0,119140.0,0.54616936]
[1752681568852,0.18464092,119150.0,119140.0,0.343]
[1752681569060,0.18464092,119150.0,119140.0,0.66937648]
[1752681569307,0.18464092,119150.0,119140.0,0.67776968]
[1752681569523,0.18464092,119150.0,119140.0,0.66937648]
[1752681569738,0.17845835,119150.0,119140.0,0.14568]
[1752681570164,0.17845835,119150.0,119140.0,0.003]
[1752681570368,0.18045835,119150.0,119140.0,0.14468]
[1752681570642,0.8258656,119150.0,119140.0,0.003]
[1752681570859,0.9674656,119150.0,119140.0,0.003]
[1752681571708,0.9654656,119150.0,119140.0,0.003]
[1752681571958,1.3054656,119150.0,119140.0,0.003]
[1752681572160,1.3084656,119150.0,119140.0,0.003]
[1752681572376,1.3054656,119150.0,119140.0,0.003]
[1752681572583,0.72631919,119140.0,119130.0,0.00015093]
[1752681572791,0.81182947,119140.0,119130.0,0.00015093]
[1752681573005,0.81403947,119140.0,119130.0,0.00015093]
[1752681573898,0.82003947,119140.0,119130.0,0.00015093]
[1752681574314,0.33588335,119140.0,119130.0,0.00015093]
[1752681576321,0.82003947,119140.0,119130.0,0.00015093]
[1752681576535,1.24579909,119140.0,119130.0,0.00015093]
[1752681576963,1.16003947,119140.0,119130.0,0.00015093]
[1752681577462,0.7655642,119140.0,119130.0,0.00015093]
[1752681578348,0.09151028,119140.0,119130.0,0.16803475]
[1752681578568,0.20744218,119140.0,119130.0,0.87184353]
[1752681578791,0.20744218,119140.0,119130.0,0.23623475]
[1752681578792,0.19065627,119140.0,119130.0,0.23623475]
[1752681579006,0.19065627,119140.0,119130.0,0.45334035]
[1752681579226,0.16785564,119150.0,119130.0,0.81852206]
[1752681579452,0.01239327,119140.0,119130.0,0.80712737]
[1752681579666,0.02517918,119140.0,119130.0,0.80712737]
[1752681580090,0.16784155,119160.0,119140.0,0.18465599]
[1752681580306,0.16784155,119160.0,119150.0,0.14132]
[1752681580519,0.16784155,119160.0,119150.0,0.14432]
[1752681581871,0.17624828,119150.0,119140.0,0.0646]
[1752681582092,0.17624828,119150.0,119140.0,0.17849837]
[1752681582331,0.17624828,119150.0,119140.0,0.1764]
[1752681582777,0.17626307,119140.0,119130.0,0.47020234]
[1752681583002,0.17626307,119140.0,119130.0,0.40750234]
[1752681583223,0.18465634,119140.0,119130.0,0.72786021]
[1752681583444,0.01678661,119140.0,119130.0,0.6605088]
[1752681583678,0.01678591,119140.0,119130.0,0.8255061]
[1752681583884,0.01678577,119140.0,119130.0,1.37701363]
[1752681584095,0.02517756,119150.0,119140.0,0.24735013]
[1752681584339,0.00839214,119150.0,119140.0,0.26710639]
[1752681584547,0.00839214,119150.0,119140.0,0.2671052]
[1752681584770,0.18462715,119160.0,119140.0,0.25871214]
[1752681585025,0.00839235,119150.0,119140.0,0.24734929]
[1752681585224,0.02517756,119150.0,119140.0,0.38818929]
[1752681585432,0.20142555,119150.0,119140.0,0.37979679]
[1752681585646,0.20142555,119150.0,119140.0,0.39955312]
[1752681585855,0.02517763,119150.0,119140.0,0.39955312]
[1752681586079,0.02517763,119150.0,119140.0,0.40794611]
[1752681586729,0.02517756,119150.0,119140.0,0.40794611]
[1752681586938,0.01678449,119150.0,119140.0,0.40794611]
[1752681587156,0.17082836,119170.0,119150.0,0.19303313]
[1752681587375,0.19301664,119160.0,119150.0,0.18464085]
[1752681587593,0.19301664,119160.0,119150.0,0.14357]
[1752681587594,0.17623355,119160.0,119150.0,0.14357]
[1752681587813,0.17623355,119160.0,119150.0,0.14566819]
[1752681588032,0.19301741,119160.0,119150.0,0.32191647]
[1752681588257,0.19301741,119160.0,119150.0,0.31981828]
[1752681588748,0.19501741,119160.0,119150.0,0.31981828]
[1752681588956,0.18662562,119160.0,119150.0,0.14357]
[1752681589169,0.17823362,119160.0,119150.0,0.14566819]
[1752681589378,0.17823362,119160.0,119150.0,0.1406]
[1752681590250,0.002,119160.0,119150.0,0.95260885]
[1752681590473,0.01139116,119170.0,119150.0,2.56978494]
[1752681590474,0.003,119170.0,119150.0,2.56978494]
[1752681590697,0.003,119170.0,119160.0,1.12400332]
[1752681590919,0.003,119170.0,119160.0,1.05961332]
[1752681591132,0.003,119170.0,119160.0,0.3438972]
[1752681591133,0.01978168,119170.0,119160.0,0.3438972]
[1752681591379,0.01139073,119170.0,119160.0,0.4842572]
[1752681591595,0.003,119170.0,119160.0,0.49250172]
[1752681591809,0.003,119170.0,119160.0,1.45626784]
[1752681592693,0.003,119170.0,119160.0,1.34836484]
[1752681593378,0.003,119170.0,119130.0,0.17939887]
[1752681593379,0.00839285,119140.0,119130.0,0.17939887]
[1752681593613,0.03357238,119140.0,119130.0,0.00015093]
[1752681593838,0.1846562,119140.0,119130.0,0.00015093]
[1752681594053,0.17626307,119140.0,119130.0,0.14083093]
[1752681594273,0.1846562,119140.0,119130.0,0.0083911]
[1752681594490,0.1846562,119140.0,119130.0,0.4920411]
[1752681595151,0.19304919,119140.0,119130.0,0.59213897]
[1752681595365,0.17626279,119140.0,119130.0,0.73277911]
[1752681595579,0.19304947,119140.0,119130.0,0.74117308]
[1752681595793,0.19304989,119140.0,119130.0,0.5565011]
[1752681596007,0.02517918,119140.0,119130.0,0.74117294]
[1752681596236,0.18464057,119150.0,119140.0,0.22434968]
[1752681596472,0.17624814,119150.0,119140.0,0.44303321]
[1752681596685,0.16785564,119150.0,119140.0,0.34188]
[1752681597117,0.16785564,119150.0,119140.0,0.50974973]
[1752681597325,0.16785564,119150.0,119140.0,0.52111307]
[1752681597549,0.16785564,119150.0,119140.0,0.52950634]
[1752681597738,0.16785564,119150.0,119140.0,0.52111307]
[1752681597976,0.16785564,119150.0,119140.0,0.51271973]
[1752681598199,0.16785564,119150.0,119140.0,0.52111321]
[1752681598415,0.16785564,119150.0,119140.0,0.53789996]
[1752681598627,0.16785564,119150.0,119140.0,0.54629323]
[1752681598628,0.17085564,119150.0,119140.0,0.54629323]
[1752681598864,0.19603306,119150.0,119140.0,0.40581295]
[1752681599143,0.02817742,119150.0,119140.0,0.62032594]
[1752681599568,0.20442584,119150.0,119140.0,0.61193295]
[1752681599775,0.18764106,119150.0,119140.0,0.58675314]
[1752681599986,0.18764106,119150.0,119140.0,0.59514648]
[1752681600216,0.003,119150.0,119140.0,0.61193267]
[1752681601082,0.003,119150.0,119130.0,0.43390138]
[1752681601284,0.003,119150.0,119140.0,0.00506837]
[1752681601493,0.003,119150.0,119140.0,0.40656837]
[1752681601724,0.003,119150.0,119140.0,0.40447]
[1752681602988,0.003,119150.0,119140.0,0.54451]
[1752681603597,0.003,119150.0,119140.0,0.40447]
[1752681603810,0.17085564,119150.0,119140.0,0.47992]
[1752681604441,0.17626307,119140.0,119130.0,0.42566121]
[1752681604670,0.17626307,119140.0,119130.0,0.56550121]
[1752681605091,0.17626307,119140.0,119130.0,0.09395537]
[1752681605292,0.17924307,119140.0,119130.0,0.09395537]
[1752681605514,0.81280947,119140.0,119130.0,0.00844509]
[1752681606134,0.78080947,119140.0,119130.0,0.00844509]
[1752681606619,0.78080947,119140.0,119130.0,0.14828509]
[1752681606811,0.78069826,119140.0,119130.0,0.14828509]
[1752681607041,0.26464214,119140.0,119130.0,0.00844509]
[1752681607266,0.26166214,119140.0,119130.0,0.00844509]
[1752681607496,0.26464214,119140.0,119130.0,0.00844509]
[1752681607740,0.26464214,119140.0,119130.0,0.13999093]
[1752681608395,0.76333911,119140.0,119130.0,0.13995093]
[1752681608625,0.27918299,119140.0,119130.0,0.00015093]
[1752681608857,0.27918299,119140.0,119130.0,0.13995093]
[1752681609308,0.26464214,119140.0,119130.0,0.13995093]
[1752681610018,0.18454513,119140.0,119130.0,0.00015093]
[1752681610251,0.00839235,119150.0,119140.0,0.18465634]
[1752681610480,0.00839235,119150.0,119140.0,0.03347]
[1752681610481,0.18464099,119150.0,119140.0,0.03347]
[1752681610711,0.17626307,119140.0,119130.0,0.34015093]
[1752681611156,0.17924307,119140.0,119130.0,0.00015093]
[1752681611750,0.17924307,119140.0,119130.0,0.14019093]
[1752681614328,0.17626307,119140.0,119130.0,0.14019093]
[1752681614534,0.01678591,119140.0,119130.0,0.40761022]
[1752681614760,0.03357238,119140.0,119130.0,0.40761022]
[1752681614983,0.17625731,119160.0,119150.0,0.17624835]
[1752681615220,0.01678485,119150.0,119140.0,0.2014419]
[1752681615465,0.01678463,119150.0,119140.0,0.3413219]
[1752681615670,0.01678463,119150.0,119140.0,0.3442819]
[1752681615893,0.04196205,119150.0,119140.0,0.33588954]
[1752681616123,0.02517918,119140.0,119130.0,0.23103475]
[1752681616346,0.01678591,119140.0,119130.0,0.73901646]
[1752681616571,0.00839285,119140.0,119130.0,0.73901646]
[1752681616826,0.16786552,119160.0,119150.0,0.17624835]
[1752681617083,0.19600039,119170.0,119160.0,0.18462492]
[1752681617324,0.20439162,119170.0,119160.0,0.17919355]
[1752681617552,0.20439218,119170.0,119160.0,0.18758548]
[1752681617759,0.20439218,119170.0,119160.0,0.19597734]
[1752681617983,0.20439218,119170.0,119160.0,0.21259617]
[1752681618447,0.20439218,119170.0,119160.0,0.20420438]
[1752681618667,0.02817334,119170.0,119160.0,0.22098775]
[1752681618892,0.003,119170.0,119160.0,0.28338747]
[1752681619122,0.02817355,119170.0,119160.0,0.28338754]
[1752681619321,0.19600102,119170.0,119160.0,0.25821252]
[1752681619572,0.01978169,119170.0,119160.0,0.27499589]
[1752681619792,0.20439141,119170.0,119160.0,0.27060431]
[1752681620017,0.2043919,119170.0,119160.0,0.07758704]
[1752681620243,0.18761,119170.0,119160.0,0.18726505]
[1752681620472,0.18753,119170.0,119160.0,0.18516704]
[1752681620893,0.18753,119170.0,119160.0,0.32290859]
[1752681621103,0.18753,119170.0,119160.0,0.33130052]
[1752681621757,0.18753,119170.0,119160.0,0.33969252]
[1752681621989,0.01970176,119170.0,119160.0,0.75927589]
[1752681622200,0.19592102,119170.0,119160.0,0.73410066]
[1752681622411,0.18753,119170.0,119160.0,0.55786704]
[1752681622624,0.18753,119170.0,119160.0,0.73410066]
[1752681622876,0.01970183,119170.0,119160.0,0.75927589]
[1752681623105,0.18752986,119170.0,119160.0,0.41798704]
[1752681623337,0.18752986,119170.0,119160.0,0.14384]
[1752681624449,0.18752986,119170.0,119160.0,0.32007362]
[1752681624663,0.18752986,119170.0,119160.0,0.32846555]
[1752681624883,0.19592074,119170.0,119160.0,0.40481734]
[1752681625093,0.18752986,119170.0,119160.0,0.1468]
[1752681625299,0.18752986,119170.0,119160.0,0.004]
[1752681625756,0.18752986,119170.0,119160.0,0.14372]
[1752681626196,0.18752986,119170.0,119160.0,0.15507207]
[1752681626410,0.17913877,119170.0,119160.0,0.32291362]
[1752681626648,0.17913877,119170.0,119160.0,0.15507207]
[1752681626873,0.17913877,119170.0,119160.0,0.14372]
[1752681627091,0.17913877,119170.0,119160.0,0.004]
[1752681627306,0.17913877,119170.0,119160.0,0.14368]
[1752681629909,0.17913877,119170.0,119160.0,0.004]
[1752681630130,0.18227877,119170.0,119160.0,0.004]
[1752681630354,0.64439441,119170.0,119160.0,0.004]
[1752681630576,1.28986554,119170.0,119160.0,1e-08]
[1752681630833,1.36955826,119170.0,119160.0,1e-08]
[1752681631029,1.36963826,119170.0,119160.0,1e-08]
[1752681631280,0.90752262,119170.0,119160.0,1e-08]
[1752681631499,1.28994554,119170.0,119160.0,1e-08]
[1752681631736,0.17623348,119160.0,119150.0,0.1396]
[1752681631967,0.17626307,119140.0,119130.0,0.00520947]
[1752681632187,0.17626307,119140.0,119130.0,0.13971093]
[1752681632834,0.17626307,119140.0,119130.0,0.00015093]
[1752681633061,0.64151871,119140.0,119130.0,0.13971093]
[1752681633283,0.17626307,119140.0,119130.0,0.13971093]
[1752681633752,0.17626307,119140.0,119130.0,0.14267093]
[1752681633980,0.16786973,119140.0,119130.0,0.14267093]
[1752681634200,0.16996769,119140.0,119130.0,0.13971093]
[1752681634418,0.16786973,119140.0,119130.0,0.13971093]
[1752681634650,0.19304961,119140.0,119130.0,0.32734299]
[1752681634872,0.17626314,119140.0,119130.0,0.14567093]
[1752681635100,0.17626091,119150.0,119130.0,0.33873646]
[1752681635349,0.02517742,119150.0,119140.0,0.72062511]
[1752681635584,0.20981784,119150.0,119140.0,0.25850947]
[1752681635804,0.19303335,119150.0,119140.0,0.25011634]
[1752681636024,0.01678478,119150.0,119140.0,0.26690246]
[1752681636465,0.02517742,119150.0,119140.0,0.26690246]
[1752681636688,0.20142577,119150.0,119140.0,0.06546]
[1752681636921,0.18465648,119140.0,119130.0,0.00115093]
[1752681637148,0.64991212,119140.0,119130.0,0.14107093]
[1752681637442,0.27330676,119140.0,119130.0,0.14119093]
[1752681637893,0.18465648,119140.0,119130.0,0.14019093]
[1752681638110,0.18465648,119140.0,119130.0,0.20815093]
[1752681638330,0.18465648,119140.0,119130.0,0.17625093]
[1752681638753,0.18465648,119140.0,119130.0,0.17629093]
[1752681639430,0.18465648,119140.0,119130.0,0.14319093]
[1752681639641,0.18465648,119140.0,119130.0,0.00315093]
[1752681639855,0.18465648,119140.0,119130.0,0.14323093]
[1752681640296,0.18465648,119140.0,119130.0,0.00315093]
[1752681640515,0.18465648,119140.0,119130.0,0.14323093]
[1752681641859,0.8694946,119140.0,119130.0,0.00315093]
[1752681642086,0.25511872,119130.0,119120.0,0.003]
[1752681642333,0.94604464,119130.0,119120.0,0.003]
[1752681643449,0.91354464,119130.0,119120.0,0.003]
[1752681644340,0.89888379,119130.0,119120.0,0.003]
[1752681644583,0.9385943,119130.0,119120.0,0.003]
[1752681644797,0.88166903,119130.0,119120.0,0.003]
[1752681645026,0.88366903,119130.0,119120.0,0.003]
[1752681645279,0.89223485,119130.0,119120.0,0.003]
[1752681645726,1.00889447,119130.0,119120.0,0.003]
[1752681645951,0.92313485,119130.0,119120.0,0.003]
[1752681646197,0.46101921,119130.0,119120.0,0.003]
[1752681646428,0.89223485,119130.0,119120.0,0.003]
[1752681646644,0.95723485,119130.0,119120.0,0.003]
[1752681647083,0.89219485,119130.0,119120.0,0.003]
[1752681649071,0.95439485,119130.0,119120.0,0.003]
[1752681650877,0.95439485,119130.0,119120.0,1e-08]
[1752681651112,0.17632227,119100.0,119090.0,0.35858804]
[1752681651336,1.34324468,119100.0,119090.0,0.35858804]
[1752681651771,0.19927471,119090.0,119080.0,0.003]
[1752681651953,0.74986063,119090.0,119080.0,0.003]
[1752681652203,0.74690063,119090.0,119080.0,0.003]
[1752681652508,0.74986063,119090.0,119080.0,0.003]
[1752681652728,0.19089273,119080.0,119070.0,1.0]
[1752681652915,0.87807865,119080.0,119070.0,1.0]
[1752681653168,0.88103865,119080.0,119070.0,1.0]
[1752681653385,0.74147865,119080.0,119070.0,1.0]
[1752681653611,0.27640301,119080.0,119070.0,1.0]
[1752681653836,0.26186216,119080.0,119070.0,1.0]
[1752681654055,0.18474938,119080.0,119070.0,1.0641]
[1752681654268,0.008481,119090.0,119080.0,0.0624]
[1752681654484,0.20161145,119090.0,119080.0,0.06749942]
[1752681654706,0.19321444,119090.0,119080.0,0.23335431]
[1752681654916,0.20161145,119090.0,119080.0,0.25014924]
[1752681655397,0.19321501,119090.0,119080.0,0.25014924]
[1752681655621,0.19321501,119090.0,119080.0,0.25014931]
[1752681655848,0.18481836,119090.0,119080.0,0.24175188]
[1752681656385,0.16802456,119090.0,119080.0,0.0654]
[1752681656601,0.17635202,119080.0,119070.0,1.54232]
[1752681657024,0.89747909,119080.0,119070.0,1.0]
[1752681657425,0.98298937,119080.0,119070.0,1.0]
[1752681658164,0.4011823,119080.0,119070.0,1.0]
[1752681658616,0.2628623,119080.0,119070.0,1.0]
[1752681658825,0.2618623,119080.0,119070.0,1.0]
[1752681659026,0.4011823,119080.0,119070.0,1.0]
[1752681660385,0.01679437,119080.0,119070.0,1.25176476]
[1752681660586,8.435e-05,119090.0,119080.0,0.5986466]
[1752681660787,8.435e-05,119090.0,119080.0,1.25080508]
[1752681661007,0.03658096,119110.0,119100.0,0.25861417]
[1752681661224,0.03658096,119110.0,119100.0,0.39801417]
[1752681661462,0.04497649,119110.0,119100.0,0.40941005]
[1752681661703,0.01139496,119110.0,119100.0,0.40941005]
[1752681661953,0.003,119110.0,119100.0,0.40941005]
[1752681662172,0.003,119110.0,119100.0,0.49692033]
[1752681662383,0.02818537,119110.0,119100.0,0.49492033]
[1752681662599,0.003,119110.0,119100.0,0.83492033]
[1752681662850,0.01979027,119110.0,119100.0,0.83892033]
[1752681663057,0.01139503,119110.0,119100.0,0.83892033]
[1752681663266,0.01139503,119110.0,119100.0,0.82212864]
[1752681663267,0.19609759,119110.0,119100.0,0.82212864]
[1752681663473,0.03658103,119110.0,119100.0,0.8354577]
[1752681663672,0.003,119110.0,119100.0,0.84385351]
[1752681663887,0.003,119110.0,119100.0,1.42566058]
[1752681664313,0.003,119110.0,119100.0,0.70045351]
[1752681664524,0.003,119130.0,119120.0,0.25898174]
[1752681664740,0.003,119130.0,119120.0,1.06897909]
[1752681665152,0.003,119130.0,119120.0,0.48717202]
[1752681665360,0.003,119130.0,119120.0,1.06897909]
[1752681665564,0.003,119130.0,119120.0,0.34749202]
[1752681665779,0.02818121,119130.0,119120.0,0.73534734]
[1752681665994,0.18767177,119130.0,119120.0,0.51796]
[1752681666422,0.18767177,119130.0,119120.0,0.3782]
[1752681666674,0.18767177,119130.0,119120.0,0.7250528]
[1752681666872,0.17088382,119130.0,119120.0,0.54876]
[1752681667075,0.17088382,119130.0,119120.0,0.002]
[1752681667536,0.17088382,119130.0,119120.0,0.14176]
[1752681668155,0.17088382,119130.0,119120.0,0.14276]
[1752681668359,0.17088382,119130.0,119120.0,0.003]
[1752681668611,0.18470299,119110.0,119100.0,0.54907311]
[1752681668740,0.18470299,119110.0,119100.0,0.57394107]
[1752681669160,0.18470299,119110.0,119100.0,0.56900796]
[1752681669758,0.18470299,119110.0,119100.0,0.08936796]
[1752681669962,0.18470299,119110.0,119100.0,0.16442796]
[1752681670361,0.85498034,119110.0,119100.0,0.13956]
[1752681670574,0.18473372,119090.0,119080.0,0.07093167]
[1752681670788,0.18473372,119090.0,119080.0,0.20785041]
[1752681671003,0.18473372,119090.0,119080.0,0.20575099]
[1752681671842,0.18473372,119090.0,119080.0,0.54575099]
[1752681672265,0.19313066,119090.0,119080.0,0.73250051]
[1752681672443,0.18473401,119090.0,119080.0,0.73744137]
[1752681672643,0.18473401,119090.0,119080.0,0.74583887]
[1752681672841,0.18473401,119090.0,119080.0,0.76258166]
[1752681673457,0.1763222,119100.0,119090.0,0.21643416]
[1752681673657,0.19311431,119100.0,119090.0,0.26022095]
[1752681673860,0.19311431,119100.0,119090.0,0.25182416]
[1752681674147,0.16791034,119120.0,119090.0,0.26022038]
[1752681674324,0.01678887,119120.0,119110.0,0.25000306]
[1752681674474,0.03357816,119120.0,119110.0,0.25000306]
[1752681674677,0.01678887,119120.0,119110.0,0.33020789]
[1752681674883,0.20147628,119120.0,119110.0,0.33860327]
[1752681675101,0.20147628,119120.0,119110.0,0.34699858]
[1752681675365,0.18468741,119120.0,119110.0,0.06839]
[1752681675564,0.17630746,119110.0,119100.0,0.54557]
[1752681675791,0.17630746,119110.0,119100.0,0.13944]
[1752681676598,0.19313038,119090.0,119080.0,0.440222]
[1752681676800,0.19313038,119090.0,119080.0,0.579782]
[1752681677045,0.18473387,119090.0,119080.0,0.74773631]
[1752681677245,0.18473387,119090.0,119080.0,0.579782]
[1752681677747,0.18473387,119090.0,119080.0,0.579662]
[1752681677960,0.18473387,119090.0,119080.0,0.581662]
[1752681678159,0.18473387,119090.0,119080.0,0.75801402]
[1752681678363,0.18473387,119090.0,119080.0,0.581662]
[1752681679226,0.19313088,119090.0,119080.0,0.76641124]
[1752681679440,0.18473416,119090.0,119080.0,0.00515099]
[1752681679651,0.18473416,119090.0,119080.0,0.14435099]
[1752681679866,0.27024444,119090.0,119080.0,0.14435099]
[1752681680065,0.86981236,119090.0,119080.0,0.00515099]
[1752681680481,1.00901236,119090.0,119080.0,0.00515099]
[1752681682670,1.00901236,119090.0,119080.0,0.00315099]
[1752681683496,0.42382529,119090.0,119080.0,0.00315099]
[1752681683974,0.42704529,119090.0,119080.0,0.00315099]
[1752681684212,1.00885236,119090.0,119080.0,0.00415099]
[1752681684667,1.07345236,119090.0,119080.0,0.00415099]
[1752681684891,1.16065895,119080.0,119070.0,1.0]
[1752681685112,1.16065895,119080.0,119070.0,1.0005035]
[1752681685113,0.61640301,119080.0,119070.0,1.0005035]
[1752681685352,0.62477828,119080.0,119070.0,1.0005035]
[1752681685578,0.61962301,119080.0,119070.0,1.0005035]
[1752681686015,0.61640301,119080.0,119070.0,1.0005035]
[1752681686465,0.27640301,119080.0,119070.0,1.1395835]
[1752681687573,0.27940301,119080.0,119070.0,1.1395835]
[1752681688279,0.28771238,119080.0,119070.0,1.1395835]
[1752681688502,0.86951945,119080.0,119070.0,1.0005035]
[1752681689133,0.75076421,119080.0,119070.0,1.0005035]
[1752681689381,0.81346421,119080.0,119070.0,1.0005035]
[1752681690072,1.20037277,119080.0,119070.0,0.3775493]
[1752681690341,0.1763667,119070.0,119060.0,1e-08]
[1752681690599,0.52482685,119030.0,119020.0,0.0034]
[1752681690814,1.22704981,119030.0,119020.0,0.00348435]
[1752681691034,0.18259395,119010.0,119000.0,0.003]
[1752681691259,0.99827463,119010.0,119000.0,0.003]
[1752681691479,0.41566674,119010.0,119000.0,0.00315066]
[1752681691696,1.0064537,119010.0,119000.0,0.00315066]
[1752681692367,0.27850674,119010.0,119000.0,0.00315066]
[1752681692587,0.41762674,119010.0,119000.0,0.00315066]
[1752681692813,0.33211646,119010.0,119000.0,0.00315066]
[1752681693270,0.19299646,119010.0,119000.0,0.00315066]
[1752681693491,0.33211646,119010.0,119000.0,0.00315066]
[1752681693920,0.91472435,119010.0,119000.0,0.00315066]
[1752681694794,0.33211646,119010.0,119000.0,0.00315066]
[1752681695013,0.41762674,119010.0,119000.0,0.00315066]
[1752681695463,1.00345463,119010.0,119000.0,0.00315066]
[1752681695677,0.19942983,118990.0,118980.0,0.003]
[1752681695893,0.33866983,118990.0,118980.0,0.00312696]
[1752681696104,0.19942983,118990.0,118980.0,0.06881696]
[1752681696317,0.19942983,118990.0,118980.0,0.06572696]
[1752681696531,0.18488898,118990.0,118980.0,0.06911696]
[1752681696749,0.18488898,118990.0,118980.0,0.20831696]
[1752681696958,0.18588898,118990.0,118980.0,0.21331696]
[1752681697183,0.18588898,118990.0,118980.0,0.07411696]
[1752681697401,0.20042983,118990.0,118980.0,0.00812696]
[1752681697615,0.78303772,118990.0,118980.0,0.00812696]
[1752681697834,0.868548,118990.0,118980.0,0.00812696]
[1752681698066,0.88626037,118990.0,118960.0,0.0034]
[1752681698288,0.88626037,118990.0,118960.0,0.00355113]
[1752681698289,0.1994609,118970.0,118960.0,0.00355113]
[1752681698514,0.16810793,118980.0,118960.0,0.25869256]
[1752681698733,0.18490487,118980.0,118970.0,0.0618]
[1752681699405,0.18490487,118980.0,118970.0,0.06489]
[1752681700510,0.00840442,118980.0,118970.0,0.38172493]
[1752681700761,0.1849048,118980.0,118970.0,0.20521]
[1752681700969,0.17650024,118980.0,118970.0,0.06489]
[1752681701198,0.17650024,118980.0,118970.0,0.20517]
[1752681701421,0.17650024,118980.0,118970.0,0.20917]
[1752681701872,0.17650024,118980.0,118970.0,0.17901]
[1752681702096,0.27655137,118980.0,118970.0,0.004]
[1752681702536,0.19104109,118980.0,118970.0,0.004]
[1752681702748,0.17650024,118980.0,118970.0,0.004]
[1752681703241,0.17650024,118980.0,118970.0,0.20887]
[1752681703462,0.01680891,118980.0,118970.0,0.49611071]
[1752681703680,0.16807963,119000.0,118990.0,0.23838541]
[1752681703900,0.16807963,119000.0,118990.0,0.20512]
[1752681704536,0.16807963,119000.0,118990.0,0.37320135]
[1752681704749,0.16807963,119000.0,118990.0,0.06484]
[1752681704962,0.00840392,118990.0,118980.0,0.14032]
[1752681705176,0.17648527,118990.0,118980.0,0.54726119]
[1752681705389,0.17648527,118990.0,118980.0,0.54516]
[1752681705844,0.18488912,118990.0,118980.0,0.72166024]
[1752681706062,0.19329227,118990.0,118980.0,0.7300648]
[1752681706276,0.20169626,118990.0,118980.0,0.7300648]
[1752681706501,0.20469626,118990.0,118980.0,0.7300648]
[1752681706727,0.003,118990.0,118980.0,0.8323837]
[1752681706957,0.003,118990.0,118980.0,1.482343]
[1752681707400,0.20469647,118990.0,118980.0,0.49035028]
[1752681707616,0.18788926,118990.0,118980.0,0.80709045]
[1752681707826,0.19629332,118990.0,118980.0,0.82389964]
[1752681708039,0.1878894,118990.0,118980.0,0.54508]
[1752681708700,0.1878894,118990.0,118980.0,0.71317547]
[1752681708880,0.1878894,118990.0,118980.0,0.54508]
[1752681709104,0.1878894,118990.0,118980.0,0.40484]
[1752681709309,0.1878894,118990.0,118980.0,0.54496]
[1752681709511,0.1878894,118990.0,118980.0,0.51022]
[1752681709736,0.1765001,118980.0,118970.0,0.06644]
[1752681709947,0.1765001,118980.0,118970.0,0.20656]
[1752681711748,0.1765001,118980.0,118970.0,0.0332]
[1752681711961,0.19104095,118980.0,118970.0,0.14092]
[1752681712174,0.27655123,118980.0,118970.0,0.14092]
[1752681712394,1.00206912,118980.0,118970.0,0.001]
[1752681713048,0.88329371,118980.0,118970.0,0.001]
[1752681714199,0.88030371,118980.0,118970.0,0.001]
[1752681714427,0.1765001,118980.0,118970.0,0.001]
[1752681714709,0.01680919,118980.0,118970.0,0.26346654]